Workbook

Sheet Example
A1: EMPLOYEE NUMBER | D1: 689000000 | G1: Annual Outing: | H1: One Way | L1: Outing Expense # | N1: =TODAY() -> 44760 | S1: One Way | V1: 000-0-00000-000 | AM1: =EXACT(AO1,K14) -> FALSE | AN1: =CODE(AM1) -> 70 | AO1: yes | AP1: =IF(AN1=86,$AD$10*$AE$10,$AD$11*$AE$10) -> 0.46
A2: Name of employee | G2: DESTINATION: | H2: Montréal | S2: Round Trip | V2: 999-9-99999-999 | AL2: yes | AM2: =EXACT(AO2,K15) -> TRUE | AN2: =CODE(AM2) -> 86 | AO2: yes | AP2: =IF(AN2=86,$AD$10*$AE$10,$AD$11*$AE$10) -> 0.64
A3: Keven Labrie | J3: am pm | S3: Return | AM3: =EXACT(AO3,K16) -> FALSE | AN3: =CODE(AM3) -> 70 | AO3: yes | AP3: =IF(AN3=86,$AD$10*$AE$10,$AD$11*$AE$10) -> 0.46
A4: Address | F4: DEPARTURE | G4: 2012-05-12 | H4: TIME: | I4: 06:00:00 | AM4: FALSE | AN4: 70 | AO4: yes | AP4: 0.46
A5: Address: | B5: 56 street land | L5: administrative use | AM5: FALSE | AN5: 70 | AO5: yes | AP5: 0.46
A6: City: | B6: Sept-Iles | F6: ARRIVED | G6: 2012-05-14 | H6: TIME: | I6: 12:00:00 | L6: Verified by : | AM6: FALSE | AN6: 70 | AO6: yes | AP6: 0.46
A7: Province: | B7: Québec | D7: G0G 1W0 | L7: Date : | AM7: FALSE | AN7: 70 | AO7: yes | AP7: 0.46
A8: Name of the persons who travelled | F8: DEPARTURE | G8: 2012-06-02 | H8: TIME: | I8: 10:00:00 | AM8: FALSE | AN8: 70 | AO8: yes | AP8: 0.46
A9: Keven, Jen, Sara | AM9: FALSE | AN9: 70 | AO9: yes | AP9: 0.46
F10: ARRIVED | G10: 2012-06-03 | H10: TIME: | I10: 05:00:00 | AD10: 0.64 | AE10: 1 | AM10: FALSE | AN10: 70 | AO10: yes | AP10: 0.46
AC11: Kilometer | AD11: 0.46 | AE11: 0.49 | AG11: Cost with receipts | AK11: Province | AM11: FALSE | AN11: 70 | AO11: yes | AP11: 0.46
AG12: Breakfast (max 10$) | AK12: Alberta | AM12: FALSE | AN12: 70 | AO12: yes | AP12: 0.46
A13: Date | B13: Kilometers | D13: $ / km | E13: Reimbursed expenses (employee's amount) | G13: Expenses according to the receipts | H13: Amount received | I13: Km covered | J13: $ / km | K13: Car Pool | L13: Total | N13: Justification | O13: Missing receipt | U13: Total | X13: cost reimbursed | Y13: Kilometers | Z13: allocated amounts between villages | AC13: Blanc-Sablon - Rimouski (1571 km) | AD13: =1883-312 -> 1571 | AE13: =AD13*$AD$11 -> 722.66 | AG13: Bus | AK13: British Columbia | AM13: FALSE | AN13: 70 | AO13: yes | AP13: 0.46
A14: 2012-05-12 | B14: Sept-Îles - Montreal (920) | D14: =Y14 -> 423.2 | G14: Plane | H14: 1600 | J14: =+IF(AN1=70,($I14*$AD$11),($I14*$AD$10)+((D14/$AD$11)*$AD$10)-D14) -> 0 | L14: =(IF(ISTEXT($H$2),U14," ")) -> 2023.2 | M14: Plane St-Augustin to Sept-Iles | U14: =(X14+Y14+IF(I14<0,0,J14+H14)) -> 2023.2 | X14: =IF(ISNA(VLOOKUP($E14,$AE$39:$AF$59,2,FALSE))=TRUE, ,VLOOKUP($E14,$AE$39:$AF$59,2,FALSE)) -> 0 | Y14: =IF(ISNA(VLOOKUP($B14,$AC$13:$AE$34,3,FALSE))=TRUE, ,VLOOKUP($B14,$AC$13:$AE$34,3,FALSE)) -> 423.2 | AC14: Blanc-Sablon -Québec (1883km) | AD14: 1883 | AE14: =AD14*$AD$11 -> 866.18 | AG14: Ferry Blanc-Sablon - St-Barbe | AK14: Prince Edward Island | AM14: FALSE | AN14: 70 | AO14: yes | AP14: 0.46
A15: 2012-06-02 | B15: Sept-Îles - Montreal (920) | D15: 423.2 | G15: Lunch (max 15$) | H15: 13.25 | J15: =+IF(AN2=70,($I15*$AD$11),($I15*$AD$10)+((D15/$AD$11)*$AD$10)-D15) -> 165.6 | K15: yes | L15: 602.05 | M15: return with (name employee) S-Iles to MTL | U15: 602.05 | X15: =IF(ISNA(VLOOKUP($E15,$AE$39:$AF$59,2,FALSE))=TRUE, ,VLOOKUP($E15,$AE$39:$AF$59,2,FALSE)) -> 0 | Y15: 423.2 | AC15: Blanc-Sablon- St-John(966km) | AD15: 966 | AE15: =AD15*$AD$11 -> 444.36 | AG15: Ferry Port-aux-Basques - North Sydney | AK15: Manitoba | AM15: FALSE | AN15: 70 | AO15: yes | AP15: 0.46
D16: 0 | G16: Supper (max 27$) | H16: 24.59 | J16: 0 | L16: 24.59 | U16: 24.59 | X16: 0 | Y16: 0 | AC16: Lourdes-de-Blanc-Sablon - Blanc-Sablon (3,7km) | AD16: 3.7 | AE16: =$AE$11*AD16 -> 1.813 | AG16: Lodging with hotel receipt | AK16: New Brunswick | AM16: FALSE | AN16: 70 | AO16: yes | AP16: 0.46
D17: 0 | G17: Taxi, $ receipt | H17: 25 | J17: 0 | L17: 25 | M17: airport to Sept-iles | U17: 25 | X17: 0 | Y17: 0 | AC17: Montréal - Toronto (556km) | AD17: 556 | AE17: =$AD$11*AD17 -> 255.76 | AG17: Lunch (max 15$) | AK17: Nunavut | AM17: FALSE | AN17: 70 | AO17: yes | AP17: 0.46
D18: 0 | G18: Lunch (max 15$) | H18: 123 | J18: 0 | L18: 123 | U18: 123 | X18: 0 | Y18: 0 | AC18: Montréal-Ottawa (202km) | AD18: 202 | AE18: =$AD$11*AD18 -> 92.92 | AG18: Meals ($52/day) | AK18: Québec
A19: 2012-06-03 | D19: 0 | E19: Chevery/ St-Augustin (130,00$) | G19: Plane | J19: 0 | L19: 130 | M19: Sept-Iles to chevery | U19: 130 | X19: 130 | Y19: 0 | AC19: Old Fort Bay - Rivière St-Paul (12$) | AD19: 0 | AE19: 12 | AG19: Other | AK19: Saskatchewan
D20: 0 | J20: 0 | L20: 0 | U20: 0 | X20: 0 | Y20: 0 | AC20: Old Fort Bay-Blanc-Sablon (30km) | AD20: 30 | AE20: =AD20*$AE$11 -> 14.7 | AG20: Parking, $ receipt | AK20: Newfoundland
D21: 0 | J21: 0 | L21: 0 | U21: 0 | X21: 0 | Y21: 0 | AC21: Québec- Sherbrooke (254) | AD21: 254 | AE21: =$AD$11*AD21 -> 116.84 | AG21: Plane | AK21: Northwest Territories
D22: 0 | J22: 0 | L22: 0 | U22: 0 | X22: 0 | Y22: 0 | AC22: Québec-Montréal (213km) | AD22: 213 | AE22: =$AD$11*AD22 -> 97.98 | AG22: Public transportation | AK22: Yukon
D23: 0 | J23: 0 | L23: 0 | U23: 0 | X23: 0 | Y23: 0 | AC23: Rivière St-Paul - Blanc Sablon (65,8km) | AD23: =22.2+28+11.9+3.7 -> 65.8 | AE23: =AD23*$AE$11 -> 32.242 | AG23: Supper (max 27$)
D24: 0 | J24: 0 | L24: 0 | U24: 0 | X24: 0 | Y24: 0 | AC24: Sept-Îles - Havre-St-Pierre (223km) | AD24: 223 | AE24: =$AD$11*AD24 -> 102.58 | AG24: Taxi, $ receipt
D25: 0 | J25: 0 | L25: 0 | U25: 0 | X25: 0 | Y25: 0 | AC25: Sept-Îles - La Malbaie (502 km) | AD25: 502 | AE25: =AD25*$AD$11 -> 230.92 | AG25: Train, $ receipt
D26: 0 | J26: 0 | L26: 0 | U26: 0 | X26: 0 | Y26: 0 | AC26: Sept-Îles - Montreal (920) | AD26: 920 | AE26: =AD26*$AD$11 -> 423.2
D27: 0 | J27: 0 | L27: 0 | U27: 0 | X27: 0 | Y27: 0 | AC27: Sept-Îles - Québec (653km) | AD27: 653 | AE27: =AD27*$AD$11 -> 300.38
D28: 0 | J28: 0 | L28: 0 | U28: 0 | X28: 0 | Y28: 0 | AC28: Sept-Îles- Baie-Comeau (233 km) | AD28: 233 | AE28: =AD28*$AD$11 -> 107.18
D29: 0 | J29: 0 | L29: 0 | U29: 0 | X29: 0 | Y29: 0 | AC29: Sept-Îles- Natashquan (377km) | AD29: =154+223 -> 377 | AE29: =$AD$11*AD29 -> 173.42
D30: 0 | J30: 0 | L30: 0 | U30: 0 | X30: 0 | Y30: 0 | AC30: St-Barbe - Corner Brooke (350km) | AD30: =298+52 -> 350 | AE30: 161
N31: Total of outing expenses | AC31: St-Barbe - Deer Lake (298km) | AD31: 298 | AE31: 137.08
B32: Date | C32: =TODAY() -> 2022-07-18 | G32: Administrative use | N32: =SUM(L14:L30) -> 2927.84 | AC32: St-Barbe - Port-aux Basques (577km) | AD32: =298+52+75+152 -> 577 | AE32: 265.42 | AN32: Travelling allocation
AC33: St-Barbe - Stephenville (425km) | AD33: =298+52+75 -> 425 | AE33: 195.5 | AN33: Village | AO33: Airport | AP33: Post office | AQ33: Dock | AR33: Village
A34: Employee signature: | G34: CODE:____________________________________________________________________ | AC34: St-Paul -Blanc-Sablon (20km) | AD34: 20 | AE34: 9.2 | AN34: Blanc-Sablon | AO34: 10 | AP34: 8 | AQ34: 8 | AR34: 8
AN35: Chevery | AO35: 8 | AP35: 8 | AQ35: 8 | AR35: 0
G36: CODE:____________________________________________________________________ | AN36: Chevery (succursale) | AO36: 8 | AP36: 8 | AQ36: 8 | AR36: 0
AN37: Harrington | AO37: 0 | AP37: 8 | AQ37: 8 | AR37: 0
AE38: Remb costs | AN38: Kégaska | AO38: 8 | AP38: 8 | AQ38: 8 | AR38: 0
AA39: Québec | AE39: Chevery/ St-Augustin (130,00$) | AF39: 130 | AN39: La Romaine | AO39: 8 | AP39: 8 | AQ39: 8 | AR39: 0
AA40: Montréal | AE40: Chevery/ Harrington Harbour (16,50$) | AF40: 16.5 | AN40: La Tabatière | AO40: 8 | AP40: 8 | AQ40: 8 | AR40: 0
AA41: Sept-Îles | AE41: Chevery/ Kegaska (142,50$) | AF41: 142.5 | AN41: Middle bay | AO41: 0 | AP41: 0 | AQ41: 0 | AR41: 0
AA42: Corner Brooke | AE42: Chevery/ La Tabatière (75,50$) | AF42: 75.5 | AN42: Mutton Bay | AO42: 8 | AP42: 8 | AQ42: 8 | AR42: 0
AA43: Gatineau | AE43: Chevery/ Tête-a-la-Baleine (37,50$) | AF43: 37.5 | AN43: Old Fort Bay | AO43: 75 | AP43: 8 | AQ43: 8 | AR43: 0
AA44: Malbaie | AE44: Chevery/La Romaine (90.00$) | AF44: 90 | AN44: Port-Menier | AO44: 8 | AP44: 8 | AQ44: 8 | AR44: 8
AA45: Baie-Comeau | AE45: Lodging (without receipt 30$) | AF45: 30 | AN45: St-Augustin | AO45: 8 | AP45: 8 | AQ45: 8 | AR45: 0
AA46: Natashquan | AE46: Kegaska / La Romaine (53,50$) | AF46: 53.5 | AN46: St-Paul | AO46: 51.5 | AP46: 8 | AQ46: 24 | AR46: 0
AA47: Havre-St-Pierre | AE47: Kegaska/Natashquan (45.00$) | AF47: 45 | AN47: Tête-à-la-Baleine | AO47: 8 | AP47: 8 | AQ47: 18 | AR47: 0
AA48: Sherbrooke | AE48: La Tabatière/ Vieux-Fort (12,00$) | AF48: 12
AA49: Kegaska | AE49: La Tabatière/ Rivière St-Augustin (54,50$) | AF49: 54.5
AA50: La Romaine | AE50: St-Augustin/ Vieux Fort (75,50$) | AF50: 75.5
AA51: Chevery | AE51: Tête-a-la-Baleine/ La Tabatière (45,00$) | AF51: 45
AA52: Harrington Harbour
AA53: Tête-à-la-Baleine
AA54: Port Menier
AA55: Mutton Bay
AA56: La Tabatière
AA57: St-Augustin
AA58: Vieux-Fort
AA59: Rivière St-Paul
AA60: Lourdes-de-Blanc-Sablon
AA61: Blanc-Sablon

Sheet FORM(1)
A1: EMPLOYEE NUMBER | G1: Annual Outing: | H1: Round Trip | L1: Outing Expense # | N1: =TODAY() -> 44760 | S1: One Way | V1: 000-0-00000-000 | AM1: =EXACT(AO1,K14) -> FALSE | AN1: =CODE(AM1) -> 70 | AO1: yes | AP1: =IF(AN1=86,$AD$10*$AE$10,$AD$11*$AE$10) -> 0.55
A2: Name of employee | G2: DESTINATION: | H2: Montréal | S2: Round Trip | V2: 999-9-99999-999 | AL2: yes | AM2: =EXACT(AO2,K15) -> FALSE | AN2: =CODE(AM2) -> 70 | AO2: yes | AP2: =IF(AN2=86,$AD$10*$AE$10,$AD$11*$AE$10) -> 0.55
J3: am pm | S3: Return | AM3: =EXACT(AO3,K16) -> FALSE | AN3: =CODE(AM3) -> 70 | AO3: yes | AP3: =IF(AN3=86,$AD$10*$AE$10,$AD$11*$AE$10) -> 0.55
A4: Address | F4: DEPARTURE | H4: TIME: | AM4: FALSE | AN4: 70 | AO4: yes | AP4: 0.55
A5: Address: | L5: administrative use | AM5: FALSE | AN5: 70 | AO5: yes | AP5: 0.55
A6: City: | F6: ARRIVED | H6: TIME: | L6: Verified by : | AM6: FALSE | AN6: 70 | AO6: yes | AP6: 0.55
A7: Province: | L7: Date : | AM7: FALSE | AN7: 70 | AO7: yes | AP7: 0.55
A8: Name of the persons who travelled | F8: DEPARTURE | H8: TIME: | AM8: FALSE | AN8: 70 | AO8: yes | AP8: 0.55 | BK8: 1
AM9: FALSE | AN9: 70 | AO9: yes | AP9: 0.55
F10: ARRIVED | H10: TIME: | AD10: 0.61 | AE10: 1 | AM10: FALSE | AN10: 70 | AO10: yes | AP10: 0.55
AC11: Kilometer | AD11: 0.55 | AE11: 0.55 | AG11: Cost with receipts | AK11: Province | AM11: FALSE | AN11: 70 | AO11: yes | AP11: 0.55
AG12: Breakfast (max 10$) | AK12: Alberta | AM12: FALSE | AN12: 70 | AO12: yes | AP12: 0.55
A13: Date | B13: Kilometers | D13: $ / km | E13: Reimbursed expenses (employee's amount) | G13: Expenses according to the receipts | H13: Amount of receipts | I13: Km covered | J13: $ / km | K13: Car Pool | L13: Total | N13: Justification | O13: Missing receipt | U13: Total | X13: cost reimbursed | Y13: Kilometers | Z13: allocated amounts between villages | AC13: Blanc-Sablon - Rimouski (1571 km) | AD13: =1883-312 -> 1571 | AE13: =AD13*$AD$11 -> 864.05 | AG13: Bus | AK13: British Columbia | AM13: FALSE | AN13: 70 | AO13: yes | AP13: 0.55
D14: =Y14 -> 0 | J14: =+IF(AN1=70,($I14*$AD$11),($I14*$AD$10)+((D14/$AD$11)*$AD$10)-D14) -> 0 | L14: =(IF(ISTEXT($H$2),U14," ")) -> 0 | U14: =(X14+Y14+IF(I14<0,0,J14+H14)) -> 0 | X14: =IF(ISNA(VLOOKUP($E14,$AE$39:$AF$61,2,FALSE))=TRUE, ,VLOOKUP($E14,$AE$39:$AF$61,2,FALSE)) -> 0 | Y14: =IF(ISNA(VLOOKUP($B14,$AC$13:$AE$35,3,FALSE))=TRUE, ,VLOOKUP($B14,$AC$13:$AE$35,3,FALSE)) -> 0 | AC14: Blanc-Sablon -Québec (1883km) | AD14: 1883 | AE14: =AD14*$AD$11 -> 1035.65 | AG14: Ferry Blanc-Sablon - St-Barbe | AK14: Prince Edward Island | AM14: FALSE | AN14: 70 | AO14: yes | AP14: 0.55
D15: 0 | J15: =+IF(AN2=70,($I15*$AD$11),($I15*$AD$10)+((D15/$AD$11)*$AD$10)-D15) -> 0 | L15: =(IF(ISTEXT($H$2),U15," ")) -> 0 | U15: 0 | X15: =IF(ISNA(VLOOKUP($E15,$AE$39:$AF$61,2,FALSE))=TRUE, ,VLOOKUP($E15,$AE$39:$AF$61,2,FALSE)) -> 0 | Y15: =IF(ISNA(VLOOKUP($B15,$AC$13:$AE$35,3,FALSE))=TRUE, ,VLOOKUP($B15,$AC$13:$AE$35,3,FALSE)) -> 0 | AC15: Blanc-Sablon- St-John(966km) | AD15: 966 | AE15: =AD15*$AD$11 -> 531.3 | AG15: Ferry Port-aux-Basques - North Sydney | AK15: Manitoba | AM15: FALSE | AN15: 70 | AO15: yes | AP15: 0.55
D16: 0 | J16: 0 | L16: 0 | U16: 0 | X16: =IF(ISNA(VLOOKUP($E16,$AE$39:$AF$61,2,FALSE))=TRUE, ,VLOOKUP($E16,$AE$39:$AF$61,2,FALSE)) -> 0 | Y16: 0 | AC16: Kegaska - Natasquan (49 km) | AD16: 49 | AE16: =$AD$11*AD16 -> 26.95 | AG16: Lodging with hotel receipt | AK16: New Brunswick | AM16: FALSE | AN16: 70 | AO16: yes | AP16: 0.55
D17: 0 | J17: 0 | L17: 0 | U17: 0 | X17: 0 | Y17: 0 | AC17: Lourdes-de-Blanc-Sablon - Blanc-Sablon (3,7km) | AD17: 3.7 | AE17: =$AE$11*AD17 -> 2.035 | AG17: Lunch (max 15$) | AK17: Nunavut | AM17: FALSE | AN17: 70 | AO17: yes | AP17: 0.55
D18: 0 | J18: 0 | L18: 0 | U18: 0 | X18: 0 | Y18: 0 | AC18: Montréal - Toronto (556km) | AD18: 556 | AE18: =$AD$11*AD18 -> 305.8 | AG18: Meals ($52/day) | AK18: Québec
D19: 0 | J19: 0 | L19: 0 | U19: 0 | X19: 0 | Y19: 0 | AC19: Montréal-Ottawa (202km) | AD19: 202 | AE19: =$AD$11*AD19 -> 111.1 | AG19: Other | AK19: Saskatchewan
D20: 0 | J20: 0 | L20: 0 | U20: 0 | X20: 0 | Y20: 0 | AC20: Old Fort Bay - Rivière St-Paul (12$) | AD20: 0 | AE20: 12 | AG20: Parking, $ receipt | AK20: Newfoundland
D21: 0 | J21: 0 | L21: 0 | U21: 0 | X21: 0 | Y21: 0 | AC21: Old Fort Bay-Blanc-Sablon (30km) | AD21: 30 | AE21: =AD21*$AE$11 -> 16.5 | AG21: Plane | AK21: Northwest Territories
D22: 0 | J22: 0 | L22: 0 | U22: 0 | X22: 0 | Y22: 0 | AC22: Québec- Sherbrooke (254) | AD22: 254 | AE22: =$AD$11*AD22 -> 139.7 | AG22: Public transportation | AK22: Yukon
D23: 0 | J23: 0 | L23: 0 | U23: 0 | X23: 0 | Y23: 0 | AC23: Québec-Montréal (213km) | AD23: 213 | AE23: =$AD$11*AD23 -> 117.15 | AG23: Supper (max 27$)
D24: 0 | J24: 0 | L24: 0 | U24: 0 | X24: 0 | Y24: 0 | AC24: Rivière St-Paul - Blanc Sablon (65,8km) | AD24: =22.2+28+11.9+3.7 -> 65.8 | AE24: =AD24*$AE$11 -> 36.19 | AG24: Taxi, $ receipt
D25: 0 | J25: 0 | L25: 0 | U25: 0 | X25: 0 | Y25: 0 | AC25: Sept-Îles - Havre-St-Pierre (223km) | AD25: 223 | AE25: =$AD$11*AD25 -> 122.65 | AG25: Train, $ receipt
D26: 0 | J26: 0 | L26: 0 | U26: 0 | X26: 0 | Y26: 0 | AC26: Sept-Îles - La Malbaie (502 km) | AD26: 502 | AE26: =AD26*$AD$11 -> 276.1
D27: 0 | J27: 0 | L27: 0 | U27: 0 | X27: 0 | Y27: 0 | AC27: Sept-Îles - Montreal (920) | AD27: 920 | AE27: =AD27*$AD$11 -> 506
D28: 0 | J28: 0 | L28: 0 | U28: 0 | X28: 0 | Y28: 0 | AC28: Sept-Îles - Québec (653km) | AD28: 653 | AE28: =AD28*$AD$11 -> 359.15
D29: 0 | J29: 0 | L29: 0 | U29: 0 | X29: 0 | Y29: 0 | AC29: Sept-Îles- Baie-Comeau (233 km) | AD29: 233 | AE29: =AD29*$AD$11 -> 128.15
A30: TOTAL | D30: =SUM(D14:D29) -> 0 | H30: =SUM(H14:H29) -> 0 | J30: =SUM(J14:J29) -> 0 | L30: =SUM(L14:L29) -> 0 | U30: 0 | X30: 0 | Y30: 0 | AC30: Sept-Îles- Natashquan (377km) | AD30: =154+223 -> 377 | AE30: =$AD$11*AD30 -> 207.35
N31: Total of outing expenses | AC31: St-Barbe - Corner Brooke (350km) | AD31: =298+52 -> 350 | AE31: 192.5
B32: Date | C32: =TODAY() -> 2022-07-18 | G32: Administrative use | N32: =SUM(L14:L29) -> 0 | AC32: St-Barbe - Deer Lake (298km) | AD32: 298 | AE32: 163.9 | AN32: Travelling allocation
AC33: St-Barbe - Port-aux Basques (577km) | AD33: =298+52+75+152 -> 577 | AE33: 317.35 | AN33: Village | AO33: Airport | AP33: Post office | AQ33: Dock | AR33: Village
A34: Employee signature: | G34: CODE:____________________________________________________________________ | AC34: St-Barbe - Stephenville (425km) | AD34: =298+52+75 -> 425 | AE34: 233.75 | AN34: Blanc-Sablon | AO34: 10 | AP34: 8 | AQ34: 8 | AR34: 8
AC35: St-Paul -Blanc-Sablon (20km) | AD35: 20 | AE35: 11 | AN35: Chevery | AO35: 8 | AP35: 8 | AQ35: 8 | AR35: 0
G36: CODE:____________________________________________________________________ | AN36: Chevery (succursale) | AO36: 8 | AP36: 8 | AQ36: 8 | AR36: 0
AN37: Harrington | AO37: 0 | AP37: 8 | AQ37: 8 | AR37: 0
AE38: Remb costs | AN38: Kégaska | AO38: 8 | AP38: 8 | AQ38: 8 | AR38: 0
AA39: Baie-Comeau | AE39: Chevery/ St-Augustin (130,00$) | AF39: 130 | AN39: La Romaine | AO39: 8 | AP39: 8 | AQ39: 8 | AR39: 0
AA40: Blanc-Sablon | AE40: Chevery/ St-Augustin (150,00$) commercial | AF40: 150 | AN40: La Tabatière | AO40: 8 | AP40: 8 | AQ40: 8 | AR40: 0
AA41: Chevery | AE41: Chevery/ Harrington Harbour (16,50$) | AF41: 16.5 | AN41: Middle bay | AO41: 0 | AP41: 0 | AQ41: 0 | AR41: 0
AA42: Corner Brooke | AE42: Chevery/ Harrington Harbour (45,000$)commercial | AF42: 45 | AN42: Mutton Bay | AO42: 8 | AP42: 8 | AQ42: 8 | AR42: 0
AA43: Gatineau | AE43: Chevery/ Kegaska (142,50$) | AF43: 142.5 | AN43: Old Fort Bay | AO43: 75 | AP43: 8 | AQ43: 8 | AR43: 0
AA44: Harrington Harbour | AE44: Chevery/ Kegaska (150,00$)commercial | AF44: 150 | AN44: Port-Menier | AO44: 8 | AP44: 8 | AQ44: 8 | AR44: 8
AA45: Havre-St-Pierre | AE45: Chevery/ La Tabatière (125,00$)commercial | AF45: 125 | AN45: St-Augustin | AO45: 8 | AP45: 8 | AQ45: 8 | AR45: 0
AA46: Kegaska | AE46: Chevery/ La Tabatière (75,50$) | AF46: 75.5 | AN46: St-Paul | AO46: 51.5 | AP46: 8 | AQ46: 24 | AR46: 0
AA47: La Romaine | AE47: Chevery/ Tête-a-la-Baleine (37,50$) | AF47: 37.5 | AN47: Tête-à-la-Baleine | AO47: 8 | AP47: 8 | AQ47: 18 | AR47: 0
AA48: La Tabatière | AE48: Chevery/ Tête-a-la-Baleine (75,00$)commercial | AF48: 75
AA49: Lourdes-de-Blanc-Sablon | AE49: Chevery/La Romaine (125,00$)commercial | AF49: 125
AA50: Malbaie | AE50: Chevery/La Romaine (90.00$) | AF50: 90
AA51: Montréal | AE51: Kegaska / La Romaine (53,50$) | AF51: 53.5
AA52: Mutton Bay | AE52: Kegaska / La Romaine (53,50$)commercial | AF52: 53.5
AA53: Natashquan | AE53: Kegaska/Natasquan (45.00$) | AF53: 45
AA54: Port Menier | AE54: Kegaska/Natasquan (50.00$)commercial | AF54: 50
AA55: Québec | AE55: La Tabatière/ Mutton Bay(12,00$) | AF55: 12
AA56: Rivière St-Paul | AE56: La Tabatière/ Mutton Bay(25,00$)commercial | AF56: 25
AA57: Sept-Îles | AE57: La Tabatière/ Rivière St-Augustin (125,00$)commercial | AF57: 125
AA58: Sherbrooke | AE58: La Tabatière/ Rivière St-Augustin (54,50$) | AF58: 54.5
AA59: St-Augustin | AE59: Lodging (without receipt 30$) | AF59: 30
AA60: Tête-à-la-Baleine | AE60: St-Augustin/ Old Fort Bay (125,00$)commercial | AF60: 125
AA61: Toronto | AE61: St-Augustin/ Old Fort Bay (75,50$) | AF61: 75.5
AA62: Vieux-Fort

Sheet FORM(2)
A1: EMPLOYEE NUMBER | G1: Annual Outing: | H1: Round Trip | L1: Outing Expense # | N1: =TODAY() -> 44760 | S1: One Way | V1: 000-0-00000-000 | AM1: =EXACT(AO1,K14) -> FALSE | AN1: =CODE(AM1) -> 70 | AO1: yes | AP1: =IF(AN1=86,$AD$10*$AE$10,$AD$11*$AE$10) -> 0.55
A2: Name of employee | G2: DESTINATION: | H2: Montréal | S2: Round Trip | V2: 999-9-99999-999 | AL2: yes | AM2: =EXACT(AO2,K15) -> FALSE | AN2: =CODE(AM2) -> 70 | AO2: yes | AP2: =IF(AN2=86,$AD$10*$AE$10,$AD$11*$AE$10) -> 0.55
J3: am pm | S3: Return | AM3: =EXACT(AO3,K16) -> FALSE | AN3: =CODE(AM3) -> 70 | AO3: yes | AP3: =IF(AN3=86,$AD$10*$AE$10,$AD$11*$AE$10) -> 0.55
A4: Address | F4: DEPARTURE | H4: TIME: | AM4: FALSE | AN4: 70 | AO4: yes | AP4: 0.55
A5: Address: | L5: administrative use | AM5: FALSE | AN5: 70 | AO5: yes | AP5: 0.55
A6: City: | F6: ARRIVED | H6: TIME: | L6: Verified by : | AM6: FALSE | AN6: 70 | AO6: yes | AP6: 0.55
A7: Province: | L7: Date : | AM7: FALSE | AN7: 70 | AO7: yes | AP7: 0.55
A8: Name of the persons who travelled | F8: DEPARTURE | H8: TIME: | AM8: FALSE | AN8: 70 | AO8: yes | AP8: 0.55 | BK8: 1
AM9: FALSE | AN9: 70 | AO9: yes | AP9: 0.55
F10: ARRIVED | H10: TIME: | AD10: 0.61 | AE10: 1 | AM10: FALSE | AN10: 70 | AO10: yes | AP10: 0.55
AC11: Kilometer | AD11: 0.55 | AE11: 0.55 | AG11: Cost with receipts | AK11: Province | AM11: FALSE | AN11: 70 | AO11: yes | AP11: 0.55
AG12: Breakfast (max 10$) | AK12: Alberta | AM12: FALSE | AN12: 70 | AO12: yes | AP12: 0.55
A13: Date | B13: Kilometers | D13: $ / km | E13: Reimbursed expenses (employee's amount) | G13: Expenses according to the receipts | H13: Amount of receipts | I13: Km covered | J13: $ / km | K13: Car Pool | L13: Total | N13: Justification | O13: Missing receipt | U13: Total | X13: cost reimbursed | Y13: Kilometers | Z13: allocated amounts between villages | AC13: Blanc-Sablon - Rimouski (1571 km) | AD13: =1883-312 -> 1571 | AE13: =AD13*$AD$11 -> 864.05 | AG13: Bus | AK13: British Columbia | AM13: FALSE | AN13: 70 | AO13: yes | AP13: 0.55
D14: =Y14 -> 0 | J14: =+IF(AN1=70,($I14*$AD$11),($I14*$AD$10)+((D14/$AD$11)*$AD$10)-D14) -> 0 | L14: =(IF(ISTEXT($H$2),U14," ")) -> 0 | U14: =(X14+Y14+IF(I14<0,0,J14+H14)) -> 0 | X14: =IF(ISNA(VLOOKUP($E14,$AE$39:$AF$61,2,FALSE))=TRUE, ,VLOOKUP($E14,$AE$39:$AF$61,2,FALSE)) -> 0 | Y14: =IF(ISNA(VLOOKUP($B14,$AC$13:$AE$35,3,FALSE))=TRUE, ,VLOOKUP($B14,$AC$13:$AE$35,3,FALSE)) -> 0 | AC14: Blanc-Sablon -Québec (1883km) | AD14: 1883 | AE14: =AD14*$AD$11 -> 1035.65 | AG14: Ferry Blanc-Sablon - St-Barbe | AK14: Prince Edward Island | AM14: FALSE | AN14: 70 | AO14: yes | AP14: 0.55
D15: 0 | J15: =+IF(AN2=70,($I15*$AD$11),($I15*$AD$10)+((D15/$AD$11)*$AD$10)-D15) -> 0 | L15: =(IF(ISTEXT($H$2),U15," ")) -> 0 | U15: 0 | X15: =IF(ISNA(VLOOKUP($E15,$AE$39:$AF$61,2,FALSE))=TRUE, ,VLOOKUP($E15,$AE$39:$AF$61,2,FALSE)) -> 0 | Y15: =IF(ISNA(VLOOKUP($B15,$AC$13:$AE$35,3,FALSE))=TRUE, ,VLOOKUP($B15,$AC$13:$AE$35,3,FALSE)) -> 0 | AC15: Blanc-Sablon- St-John(966km) | AD15: 966 | AE15: =AD15*$AD$11 -> 531.3 | AG15: Ferry Port-aux-Basques - North Sydney | AK15: Manitoba | AM15: FALSE | AN15: 70 | AO15: yes | AP15: 0.55
D16: 0 | J16: 0 | L16: 0 | U16: 0 | X16: =IF(ISNA(VLOOKUP($E16,$AE$39:$AF$61,2,FALSE))=TRUE, ,VLOOKUP($E16,$AE$39:$AF$61,2,FALSE)) -> 0 | Y16: 0 | AC16: Kegaska - Natasquan (49 km) | AD16: 49 | AE16: =$AD$11*AD16 -> 26.95 | AG16: Lodging with hotel receipt | AK16: New Brunswick | AM16: FALSE | AN16: 70 | AO16: yes | AP16: 0.55
D17: 0 | J17: 0 | L17: 0 | U17: 0 | X17: 0 | Y17: 0 | AC17: Lourdes-de-Blanc-Sablon - Blanc-Sablon (3,7km) | AD17: 3.7 | AE17: =$AE$11*AD17 -> 2.035 | AG17: Lunch (max 15$) | AK17: Nunavut | AM17: FALSE | AN17: 70 | AO17: yes | AP17: 0.55
D18: 0 | J18: 0 | L18: 0 | U18: 0 | X18: 0 | Y18: 0 | AC18: Montréal - Toronto (556km) | AD18: 556 | AE18: =$AD$11*AD18 -> 305.8 | AG18: Meals ($52/day) | AK18: Québec
D19: 0 | J19: 0 | L19: 0 | U19: 0 | X19: 0 | Y19: 0 | AC19: Montréal-Ottawa (202km) | AD19: 202 | AE19: =$AD$11*AD19 -> 111.1 | AG19: Other | AK19: Saskatchewan
D20: 0 | J20: 0 | L20: 0 | U20: 0 | X20: 0 | Y20: 0 | AC20: Old Fort Bay - Rivière St-Paul (12$) | AD20: 0 | AE20: 12 | AG20: Parking, $ receipt | AK20: Newfoundland
D21: 0 | J21: 0 | L21: 0 | U21: 0 | X21: 0 | Y21: 0 | AC21: Old Fort Bay-Blanc-Sablon (30km) | AD21: 30 | AE21: =AD21*$AE$11 -> 16.5 | AG21: Plane | AK21: Northwest Territories
D22: 0 | J22: 0 | L22: 0 | U22: 0 | X22: 0 | Y22: 0 | AC22: Québec- Sherbrooke (254) | AD22: 254 | AE22: =$AD$11*AD22 -> 139.7 | AG22: Public transportation | AK22: Yukon
D23: 0 | J23: 0 | L23: 0 | U23: 0 | X23: 0 | Y23: 0 | AC23: Québec-Montréal (213km) | AD23: 213 | AE23: =$AD$11*AD23 -> 117.15 | AG23: Supper (max 27$)
D24: 0 | J24: 0 | L24: 0 | U24: 0 | X24: 0 | Y24: 0 | AC24: Rivière St-Paul - Blanc Sablon (65,8km) | AD24: =22.2+28+11.9+3.7 -> 65.8 | AE24: =AD24*$AE$11 -> 36.19 | AG24: Taxi, $ receipt
D25: 0 | J25: 0 | L25: 0 | U25: 0 | X25: 0 | Y25: 0 | AC25: Sept-Îles - Havre-St-Pierre (223km) | AD25: 223 | AE25: =$AD$11*AD25 -> 122.65 | AG25: Train, $ receipt
D26: 0 | J26: 0 | L26: 0 | U26: 0 | X26: 0 | Y26: 0 | AC26: Sept-Îles - La Malbaie (502 km) | AD26: 502 | AE26: =AD26*$AD$11 -> 276.1
D27: 0 | J27: 0 | L27: 0 | U27: 0 | X27: 0 | Y27: 0 | AC27: Sept-Îles - Montreal (920) | AD27: 920 | AE27: =AD27*$AD$11 -> 506
D28: 0 | J28: 0 | L28: 0 | U28: 0 | X28: 0 | Y28: 0 | AC28: Sept-Îles - Québec (653km) | AD28: 653 | AE28: =AD28*$AD$11 -> 359.15
D29: 0 | J29: 0 | L29: 0 | U29: 0 | X29: 0 | Y29: 0 | AC29: Sept-Îles- Baie-Comeau (233 km) | AD29: 233 | AE29: =AD29*$AD$11 -> 128.15
A30: TOTAL | D30: =SUM(D14:D29) -> 0 | H30: =SUM(H14:H29) -> 0 | J30: =SUM(J14:J29) -> 0 | L30: =SUM(L14:L29) -> 0 | U30: 0 | X30: 0 | Y30: 0 | AC30: Sept-Îles- Natashquan (377km) | AD30: =154+223 -> 377 | AE30: =$AD$11*AD30 -> 207.35
N31: Total of outing expenses | AC31: St-Barbe - Corner Brooke (350km) | AD31: =298+52 -> 350 | AE31: 192.5
B32: Date | C32: =TODAY() -> 2022-07-18 | G32: Administrative use | N32: =SUM(L14:L29) -> 0 | AC32: St-Barbe - Deer Lake (298km) | AD32: 298 | AE32: 163.9 | AN32: Travelling allocation
AC33: St-Barbe - Port-aux Basques (577km) | AD33: =298+52+75+152 -> 577 | AE33: 317.35 | AN33: Village | AO33: Airport | AP33: Post office | AQ33: Dock | AR33: Village
A34: Employee signature: | G34: CODE:____________________________________________________________________ | AC34: St-Barbe - Stephenville (425km) | AD34: =298+52+75 -> 425 | AE34: 233.75 | AN34: Blanc-Sablon | AO34: 10 | AP34: 8 | AQ34: 8 | AR34: 8
AC35: St-Paul -Blanc-Sablon (20km) | AD35: 20 | AE35: 11 | AN35: Chevery | AO35: 8 | AP35: 8 | AQ35: 8 | AR35: 0
G36: CODE:____________________________________________________________________ | AN36: Chevery (succursale) | AO36: 8 | AP36: 8 | AQ36: 8 | AR36: 0
AN37: Harrington | AO37: 0 | AP37: 8 | AQ37: 8 | AR37: 0
AE38: Remb costs | AN38: Kégaska | AO38: 8 | AP38: 8 | AQ38: 8 | AR38: 0
AA39: Baie-Comeau | AE39: Chevery/ St-Augustin (130,00$) | AF39: 130 | AN39: La Romaine | AO39: 8 | AP39: 8 | AQ39: 8 | AR39: 0
AA40: Blanc-Sablon | AE40: Chevery/ St-Augustin (150,00$) commercial | AF40: 150 | AN40: La Tabatière | AO40: 8 | AP40: 8 | AQ40: 8 | AR40: 0
AA41: Chevery | AE41: Chevery/ Harrington Harbour (16,50$) | AF41: 16.5 | AN41: Middle bay | AO41: 0 | AP41: 0 | AQ41: 0 | AR41: 0
AA42: Corner Brooke | AE42: Chevery/ Harrington Harbour (45,000$)commercial | AF42: 45 | AN42: Mutton Bay | AO42: 8 | AP42: 8 | AQ42: 8 | AR42: 0
AA43: Gatineau | AE43: Chevery/ Kegaska (142,50$) | AF43: 142.5 | AN43: Old Fort Bay | AO43: 75 | AP43: 8 | AQ43: 8 | AR43: 0
AA44: Harrington Harbour | AE44: Chevery/ Kegaska (150,00$)commercial | AF44: 150 | AN44: Port-Menier | AO44: 8 | AP44: 8 | AQ44: 8 | AR44: 8
AA45: Havre-St-Pierre | AE45: Chevery/ La Tabatière (125,00$)commercial | AF45: 125 | AN45: St-Augustin | AO45: 8 | AP45: 8 | AQ45: 8 | AR45: 0
AA46: Kegaska | AE46: Chevery/ La Tabatière (75,50$) | AF46: 75.5 | AN46: St-Paul | AO46: 51.5 | AP46: 8 | AQ46: 24 | AR46: 0
AA47: La Romaine | AE47: Chevery/ Tête-a-la-Baleine (37,50$) | AF47: 37.5 | AN47: Tête-à-la-Baleine | AO47: 8 | AP47: 8 | AQ47: 18 | AR47: 0
AA48: La Tabatière | AE48: Chevery/ Tête-a-la-Baleine (75,00$)commercial | AF48: 75
AA49: Lourdes-de-Blanc-Sablon | AE49: Chevery/La Romaine (125,00$)commercial | AF49: 125
AA50: Malbaie | AE50: Chevery/La Romaine (90.00$) | AF50: 90
AA51: Montréal | AE51: Kegaska / La Romaine (53,50$) | AF51: 53.5
AA52: Mutton Bay | AE52: Kegaska / La Romaine (53,50$)commercial | AF52: 53.5
AA53: Natashquan | AE53: Kegaska/Natasquan (45.00$) | AF53: 45
AA54: Port Menier | AE54: Kegaska/Natasquan (50.00$)commercial | AF54: 50
AA55: Québec | AE55: La Tabatière/ Mutton Bay(12,00$) | AF55: 12
AA56: Rivière St-Paul | AE56: La Tabatière/ Mutton Bay(25,00$)commercial | AF56: 25
AA57: Sept-Îles | AE57: La Tabatière/ Rivière St-Augustin (125,00$)commercial | AF57: 125
AA58: Sherbrooke | AE58: La Tabatière/ Rivière St-Augustin (54,50$) | AF58: 54.5
AA59: St-Augustin | AE59: Lodging (without receipt 30$) | AF59: 30
AA60: Tête-à-la-Baleine | AE60: St-Augustin/ Old Fort Bay (125,00$)commercial | AF60: 125
AA61: Toronto | AE61: St-Augustin/ Old Fort Bay (75,50$) | AF61: 75.5
AA62: Vieux-Fort

Sheet FORM(3)
A1: EMPLOYEE NUMBER | G1: Annual Outing: | H1: Round Trip | L1: Outing Expense # | N1: =TODAY() -> 44760 | S1: One Way | V1: 000-0-00000-000 | AM1: =EXACT(AO1,K14) -> FALSE | AN1: =CODE(AM1) -> 70 | AO1: yes | AP1: =IF(AN1=86,$AD$10*$AE$10,$AD$11*$AE$10) -> 0.55
A2: Name of employee | G2: DESTINATION: | H2: Montréal | S2: Round Trip | V2: 999-9-99999-999 | AL2: yes | AM2: =EXACT(AO2,K15) -> FALSE | AN2: =CODE(AM2) -> 70 | AO2: yes | AP2: =IF(AN2=86,$AD$10*$AE$10,$AD$11*$AE$10) -> 0.55
J3: am pm | S3: Return | AM3: =EXACT(AO3,K16) -> FALSE | AN3: =CODE(AM3) -> 70 | AO3: yes | AP3: =IF(AN3=86,$AD$10*$AE$10,$AD$11*$AE$10) -> 0.55
A4: Address | F4: DEPARTURE | H4: TIME: | AM4: FALSE | AN4: 70 | AO4: yes | AP4: 0.55
A5: Address: | L5: administrative use | AM5: FALSE | AN5: 70 | AO5: yes | AP5: 0.55
A6: City: | F6: ARRIVED | H6: TIME: | L6: Verified by : | AM6: FALSE | AN6: 70 | AO6: yes | AP6: 0.55
A7: Province: | L7: Date : | AM7: FALSE | AN7: 70 | AO7: yes | AP7: 0.55
A8: Name of the persons who travelled | F8: DEPARTURE | H8: TIME: | AM8: FALSE | AN8: 70 | AO8: yes | AP8: 0.55 | BK8: 1
AM9: FALSE | AN9: 70 | AO9: yes | AP9: 0.55
F10: ARRIVED | H10: TIME: | AD10: 0.61 | AE10: 1 | AM10: FALSE | AN10: 70 | AO10: yes | AP10: 0.55
AC11: Kilometer | AD11: 0.55 | AE11: 0.55 | AG11: Cost with receipts | AK11: Province | AM11: FALSE | AN11: 70 | AO11: yes | AP11: 0.55
AG12: Breakfast (max 10$) | AK12: Alberta | AM12: FALSE | AN12: 70 | AO12: yes | AP12: 0.55
A13: Date | B13: Kilometers | D13: $ / km | E13: Reimbursed expenses (employee's amount) | G13: Expenses according to the receipts | H13: Amount of receipts | I13: Km covered | J13: $ / km | K13: Car Pool | L13: Total | N13: Justification | O13: Missing receipt | U13: Total | X13: cost reimbursed | Y13: Kilometers | Z13: allocated amounts between villages | AC13: Blanc-Sablon - Rimouski (1571 km) | AD13: =1883-312 -> 1571 | AE13: =AD13*$AD$11 -> 864.05 | AG13: Bus | AK13: British Columbia | AM13: FALSE | AN13: 70 | AO13: yes | AP13: 0.55
D14: =Y14 -> 0 | J14: =+IF(AN1=70,($I14*$AD$11),($I14*$AD$10)+((D14/$AD$11)*$AD$10)-D14) -> 0 | L14: =(IF(ISTEXT($H$2),U14," ")) -> 0 | U14: =(X14+Y14+IF(I14<0,0,J14+H14)) -> 0 | X14: =IF(ISNA(VLOOKUP($E14,$AE$39:$AF$61,2,FALSE))=TRUE, ,VLOOKUP($E14,$AE$39:$AF$61,2,FALSE)) -> 0 | Y14: =IF(ISNA(VLOOKUP($B14,$AC$13:$AE$35,3,FALSE))=TRUE, ,VLOOKUP($B14,$AC$13:$AE$35,3,FALSE)) -> 0 | AC14: Blanc-Sablon -Québec (1883km) | AD14: 1883 | AE14: =AD14*$AD$11 -> 1035.65 | AG14: Ferry Blanc-Sablon - St-Barbe | AK14: Prince Edward Island | AM14: FALSE | AN14: 70 | AO14: yes | AP14: 0.55
D15: 0 | J15: =+IF(AN2=70,($I15*$AD$11),($I15*$AD$10)+((D15/$AD$11)*$AD$10)-D15) -> 0 | L15: =(IF(ISTEXT($H$2),U15," ")) -> 0 | U15: 0 | X15: =IF(ISNA(VLOOKUP($E15,$AE$39:$AF$61,2,FALSE))=TRUE, ,VLOOKUP($E15,$AE$39:$AF$61,2,FALSE)) -> 0 | Y15: =IF(ISNA(VLOOKUP($B15,$AC$13:$AE$35,3,FALSE))=TRUE, ,VLOOKUP($B15,$AC$13:$AE$35,3,FALSE)) -> 0 | AC15: Blanc-Sablon- St-John(966km) | AD15: 966 | AE15: =AD15*$AD$11 -> 531.3 | AG15: Ferry Port-aux-Basques - North Sydney | AK15: Manitoba | AM15: FALSE | AN15: 70 | AO15: yes | AP15: 0.55
D16: 0 | J16: 0 | L16: 0 | U16: 0 | X16: =IF(ISNA(VLOOKUP($E16,$AE$39:$AF$61,2,FALSE))=TRUE, ,VLOOKUP($E16,$AE$39:$AF$61,2,FALSE)) -> 0 | Y16: 0 | AC16: Kegaska - Natasquan (49 km) | AD16: 49 | AE16: =$AD$11*AD16 -> 26.95 | AG16: Lodging with hotel receipt | AK16: New Brunswick | AM16: FALSE | AN16: 70 | AO16: yes | AP16: 0.55
D17: 0 | J17: 0 | L17: 0 | U17: 0 | X17: 0 | Y17: 0 | AC17: Lourdes-de-Blanc-Sablon - Blanc-Sablon (3,7km) | AD17: 3.7 | AE17: =$AE$11*AD17 -> 2.035 | AG17: Lunch (max 15$) | AK17: Nunavut | AM17: FALSE | AN17: 70 | AO17: yes | AP17: 0.55
D18: 0 | J18: 0 | L18: 0 | U18: 0 | X18: 0 | Y18: 0 | AC18: Montréal - Toronto (556km) | AD18: 556 | AE18: =$AD$11*AD18 -> 305.8 | AG18: Meals ($52/day) | AK18: Québec
D19: 0 | J19: 0 | L19: 0 | U19: 0 | X19: 0 | Y19: 0 | AC19: Montréal-Ottawa (202km) | AD19: 202 | AE19: =$AD$11*AD19 -> 111.1 | AG19: Other | AK19: Saskatchewan
D20: 0 | J20: 0 | L20: 0 | U20: 0 | X20: 0 | Y20: 0 | AC20: Old Fort Bay - Rivière St-Paul (12$) | AD20: 0 | AE20: 12 | AG20: Parking, $ receipt | AK20: Newfoundland
D21: 0 | J21: 0 | L21: 0 | U21: 0 | X21: 0 | Y21: 0 | AC21: Old Fort Bay-Blanc-Sablon (30km) | AD21: 30 | AE21: =AD21*$AE$11 -> 16.5 | AG21: Plane | AK21: Northwest Territories
D22: 0 | J22: 0 | L22: 0 | U22: 0 | X22: 0 | Y22: 0 | AC22: Québec- Sherbrooke (254) | AD22: 254 | AE22: =$AD$11*AD22 -> 139.7 | AG22: Public transportation | AK22: Yukon
D23: 0 | J23: 0 | L23: 0 | U23: 0 | X23: 0 | Y23: 0 | AC23: Québec-Montréal (213km) | AD23: 213 | AE23: =$AD$11*AD23 -> 117.15 | AG23: Supper (max 27$)
D24: 0 | J24: 0 | L24: 0 | U24: 0 | X24: 0 | Y24: 0 | AC24: Rivière St-Paul - Blanc Sablon (65,8km) | AD24: =22.2+28+11.9+3.7 -> 65.8 | AE24: =AD24*$AE$11 -> 36.19 | AG24: Taxi, $ receipt
D25: 0 | J25: 0 | L25: 0 | U25: 0 | X25: 0 | Y25: 0 | AC25: Sept-Îles - Havre-St-Pierre (223km) | AD25: 223 | AE25: =$AD$11*AD25 -> 122.65 | AG25: Train, $ receipt
D26: 0 | J26: 0 | L26: 0 | U26: 0 | X26: 0 | Y26: 0 | AC26: Sept-Îles - La Malbaie (502 km) | AD26: 502 | AE26: =AD26*$AD$11 -> 276.1
D27: 0 | J27: 0 | L27: 0 | U27: 0 | X27: 0 | Y27: 0 | AC27: Sept-Îles - Montreal (920) | AD27: 920 | AE27: =AD27*$AD$11 -> 506
D28: 0 | J28: 0 | L28: 0 | U28: 0 | X28: 0 | Y28: 0 | AC28: Sept-Îles - Québec (653km) | AD28: 653 | AE28: =AD28*$AD$11 -> 359.15
D29: 0 | J29: 0 | L29: 0 | U29: 0 | X29: 0 | Y29: 0 | AC29: Sept-Îles- Baie-Comeau (233 km) | AD29: 233 | AE29: =AD29*$AD$11 -> 128.15
A30: TOTAL | D30: =SUM(D14:D29) -> 0 | H30: =SUM(H14:H29) -> 0 | J30: =SUM(J14:J29) -> 0 | L30: =SUM(L14:L29) -> 0 | U30: 0 | X30: 0 | Y30: 0 | AC30: Sept-Îles- Natashquan (377km) | AD30: =154+223 -> 377 | AE30: =$AD$11*AD30 -> 207.35
N31: Total of outing expenses | AC31: St-Barbe - Corner Brooke (350km) | AD31: =298+52 -> 350 | AE31: 192.5
B32: Date | C32: =TODAY() -> 2022-07-18 | G32: Administrative use | N32: =SUM(L14:L29) -> 0 | AC32: St-Barbe - Deer Lake (298km) | AD32: 298 | AE32: 163.9 | AN32: Travelling allocation
AC33: St-Barbe - Port-aux Basques (577km) | AD33: =298+52+75+152 -> 577 | AE33: 317.35 | AN33: Village | AO33: Airport | AP33: Post office | AQ33: Dock | AR33: Village
A34: Employee signature: | G34: CODE:____________________________________________________________________ | AC34: St-Barbe - Stephenville (425km) | AD34: =298+52+75 -> 425 | AE34: 233.75 | AN34: Blanc-Sablon | AO34: 10 | AP34: 8 | AQ34: 8 | AR34: 8
AC35: St-Paul -Blanc-Sablon (20km) | AD35: 20 | AE35: 11 | AN35: Chevery | AO35: 8 | AP35: 8 | AQ35: 8 | AR35: 0
G36: CODE:____________________________________________________________________ | AN36: Chevery (succursale) | AO36: 8 | AP36: 8 | AQ36: 8 | AR36: 0
AN37: Harrington | AO37: 0 | AP37: 8 | AQ37: 8 | AR37: 0
AE38: Remb costs | AN38: Kégaska | AO38: 8 | AP38: 8 | AQ38: 8 | AR38: 0
AA39: Baie-Comeau | AE39: Chevery/ St-Augustin (130,00$) | AF39: 130 | AN39: La Romaine | AO39: 8 | AP39: 8 | AQ39: 8 | AR39: 0
AA40: Blanc-Sablon | AE40: Chevery/ St-Augustin (150,00$) commercial | AF40: 150 | AN40: La Tabatière | AO40: 8 | AP40: 8 | AQ40: 8 | AR40: 0
AA41: Chevery | AE41: Chevery/ Harrington Harbour (16,50$) | AF41: 16.5 | AN41: Middle bay | AO41: 0 | AP41: 0 | AQ41: 0 | AR41: 0
AA42: Corner Brooke | AE42: Chevery/ Harrington Harbour (45,000$)commercial | AF42: 45 | AN42: Mutton Bay | AO42: 8 | AP42: 8 | AQ42: 8 | AR42: 0
AA43: Gatineau | AE43: Chevery/ Kegaska (142,50$) | AF43: 142.5 | AN43: Old Fort Bay | AO43: 75 | AP43: 8 | AQ43: 8 | AR43: 0
AA44: Harrington Harbour | AE44: Chevery/ Kegaska (150,00$)commercial | AF44: 150 | AN44: Port-Menier | AO44: 8 | AP44: 8 | AQ44: 8 | AR44: 8
AA45: Havre-St-Pierre | AE45: Chevery/ La Tabatière (125,00$)commercial | AF45: 125 | AN45: St-Augustin | AO45: 8 | AP45: 8 | AQ45: 8 | AR45: 0
AA46: Kegaska | AE46: Chevery/ La Tabatière (75,50$) | AF46: 75.5 | AN46: St-Paul | AO46: 51.5 | AP46: 8 | AQ46: 24 | AR46: 0
AA47: La Romaine | AE47: Chevery/ Tête-a-la-Baleine (37,50$) | AF47: 37.5 | AN47: Tête-à-la-Baleine | AO47: 8 | AP47: 8 | AQ47: 18 | AR47: 0
AA48: La Tabatière | AE48: Chevery/ Tête-a-la-Baleine (75,00$)commercial | AF48: 75
AA49: Lourdes-de-Blanc-Sablon | AE49: Chevery/La Romaine (125,00$)commercial | AF49: 125
AA50: Malbaie | AE50: Chevery/La Romaine (90.00$) | AF50: 90
AA51: Montréal | AE51: Kegaska / La Romaine (53,50$) | AF51: 53.5
AA52: Mutton Bay | AE52: Kegaska / La Romaine (53,50$)commercial | AF52: 53.5
AA53: Natashquan | AE53: Kegaska/Natasquan (45.00$) | AF53: 45
AA54: Port Menier | AE54: Kegaska/Natasquan (50.00$)commercial | AF54: 50
AA55: Québec | AE55: La Tabatière/ Mutton Bay(12,00$) | AF55: 12
AA56: Rivière St-Paul | AE56: La Tabatière/ Mutton Bay(25,00$)commercial | AF56: 25
AA57: Sept-Îles | AE57: La Tabatière/ Rivière St-Augustin (125,00$)commercial | AF57: 125
AA58: Sherbrooke | AE58: La Tabatière/ Rivière St-Augustin (54,50$) | AF58: 54.5
AA59: St-Augustin | AE59: Lodging (without receipt 30$) | AF59: 30
AA60: Tête-à-la-Baleine | AE60: St-Augustin/ Old Fort Bay (125,00$)commercial | AF60: 125
AA61: Toronto | AE61: St-Augustin/ Old Fort Bay (75,50$) | AF61: 75.5
AA62: Vieux-Fort
